{"text_format":"3","workbook":"xlsx","n_sheets":6,"sheets":["Bắt đầu","Bảng điều khiển","Chi tiêu & Thu nhập","Báo cáo ngân sách","Danh sách dữ liệu","Danh mục PivotTable"],"not_rendered":{"charts":3,"defined_names":23,"pivot_tables":2},"read":"whole","date_system":"1900"}

{"sheet":"Bắt đầu","index":0,"n_rows":8,"n_cols":2,"rows_kept":8}
[null,"Giới thiệu về mẫu"]
[null,"Sử dụng mẫu này để tạo ngân sách nhà nửa tháng."]
[null,"Trang tính Bảng điều khiển có chứa các biểu đồ về Tổng số Hàng tháng và Hàng năm và một bảng về Thu nhập và Chi phí hai tuần một lần."]
[null,"Nhập danh mục trong trang tính Danh sách Dữ liệu và giá trị trong trang tính Thu nhập và Chi phí."]
[null,"Làm mới PivotTable trong trang tính Báo cáo Ngân sách."]
[null,"Lưu ý:"]
[null,"Hướng dẫn bổ sung đã được cung cấp ở cột A ở tất cả các trang tính. Văn bản này đã được ẩn một cách chủ ý. Để xóa văn bản, chọn cột A, rồi chọn XÓA. "]
[null,"Để tìm hiểu thêm về các bảng, hãy nhấn SHIFT rồi nhấn F10 trong một bảng, chọn tùy chọn BẢNG, rồi chọn VĂN BẢN THAY THẾ. Đối với PivotTable, nhấn SHIFT rồi nhấn F10 trong một bảng, chọn TÙY CHỌN PIVOTTABLE, rồi chọn tab VĂN BẢN THAY THẾ."]

{"sheet":"Bảng điều khiển","index":1,"n_rows":12,"n_cols":15,"rows_kept":12,"merged":[[0,1,0,13],[1,2,1,7]]}
["Tạo bảng điều khiển cho Tổng Hàng tháng và Hàng năm, cũng như thu nhập và chi phí hai tuần một lần trong trang tính này. Các hướng dẫn hữu ích về cách sử dụng trang tính này đều nằm trong các ô trong cột này. Tiêu đề của sổ làm việc này nằm trong ô ở bên phải và tiêu đề trang tính trong ô O1.","Ngân sách Nhà Nửa tháng",{"$nulls":12},"BẢNG ĐIỀU KHIỂN"]
["Chọn con trượt trong ô C2 để thay đổi tháng trong ô bên phải và để thay đổi năm trong ô I2, hãy chọn con trượt trong ô J2.",{"$f":"CHOOSE(Số_tháng,\"THÁNG 1\",\"THÁNG HAI\",\"THÁNG BA\",\"THÁNG TƯ\",\"THÁNG NĂM\",\"THÁNG SÁU\",\"THÁNG BẢY\",\"THÁNG TÁM\",\"THÁNG CHÍN\",\"THÁNG MƯỜI\",\"THÁNG MƯỜI MỘT\",\"THÁNG MƯỜI HAI\")","v":"THÁNG MƯỜI HAI"},12,{"$nulls":5},{"$f":"YEAR(TODAY())","v":2022}]
["Nhãn Tổng cộng Tháng nằm trong ô ở bên phải và nhãn Tổng cộng Hàng năm trong ô I3.","TỔNG SỐ THÁNG",{"$nulls":6},"TỔNG HÀNG NĂM"]
["Biểu đồ thanh so sánh tổng Thu nhập Hàng tháng với tổng Chi phí Hàng tháng nằm ở ô C4 và biểu đồ thanh so sánh tổng Thu nhập Hàng năm với tổng Chi phí Hàng năm nằm ở ô J4. Hướng dẫn tiếp theo nằm trong ô A8.","THU NHẬP",null,{"$f":"Tổng_chi_tiêu_hàng_tháng","v":{"v":0,"d":"0 ₫"}},{"$nulls":4},"THU NHẬP",null,null,{"$f":"Tổng_chi_tiêu_hàng_năm","v":{"v":10742,"d":"10,742 ₫"}}]
[null,"CÁC KHOẢN CHI PHÍ",null,{"$f":"Tổng_thu_nhập_hàng_tháng","v":{"v":0,"d":"0 ₫"}},{"$nulls":4},"CÁC KHOẢN CHI PHÍ",null,null,{"$f":"Tổng_thu_nhập_hàng_năm","v":{"v":13200,"d":"13,200 ₫"}}]
[]
[]
["Bảng trang tổng quan bắt đầu ở ô bên phải được cập nhật tự động.","Danh mục","THÁNG GIÊNG","THÁNG HAI","THÁNG BA","THÁNG TƯ","THÁNG NĂM","THÁNG SÁU","THÁNG BẢY","THÁNG TÁM","THÁNG CHÍN","THÁNG MƯỜI","THÁNG MƯỜI MỘT","THÁNG MƯỜI HAI","Biểu đồ thu nhỏ"]
[null,"Thu nhập 1-15",{"$f":"SUMIFS(Thu_nhập[SỐ TIỀN],Thu_nhập[NGÀY],\"<=\"&DtMiddle,Thu_nhập[NGÀY],\">=\"&DtStart)","v":{"v":0,"d":"0.00 ₫"}},{"$f":"SUMIFS(Thu_nhập[SỐ TIỀN],Thu_nhập[NGÀY],\"<=\"&DtMiddle,Thu_nhập[NGÀY],\">=\"&DtStart)","v":{"v":0,"d":"0.00 ₫"}},{"$f":"SUMIFS(Thu_nhập[SỐ TIỀN],Thu_nhập[NGÀY],\"<=\"&DtMiddle,Thu_nhập[NGÀY],\">=\"&DtStart)","v":{"v":1300,"d":"1,300.00 ₫"}},{"$f":"SUMIFS(Thu_nhập[SỐ TIỀN],Thu_nhập[NGÀY],\"<=\"&DtMiddle,Thu_nhập[NGÀY],\">=\"&DtStart)","v":{"v":2600,"d":"2,600.00 ₫"}},{"$f":"SUMIFS(Thu_nhập[SỐ TIỀN],Thu_nhập[NGÀY],\"<=\"&DtMiddle,Thu_nhập[NGÀY],\">=\"&DtStart)","v":{"v":2600,"d":"2,600.00 ₫"}},{"$f":"SUMIFS(Thu_nhập[SỐ TIỀN],Thu_nhập[NGÀY],\"<=\"&DtMiddle,Thu_nhập[NGÀY],\">=\"&DtStart)","v":{"v":0,"d":"0.00 ₫"}},{"$f":"SUMIFS(Thu_nhập[SỐ TIỀN],Thu_nhập[NGÀY],\"<=\"&DtMiddle,Thu_nhập[NGÀY],\">=\"&DtStart)","v":{"v":0,"d":"0.00 ₫"}},{"$f":"SUMIFS(Thu_nhập[SỐ TIỀN],Thu_nhập[NGÀY],\"<=\"&DtMiddle,Thu_nhập[NGÀY],\">=\"&DtStart)","v":{"v":0,"d":"0.00 ₫"}},{"$f":"SUMIFS(Thu_nhập[SỐ TIỀN],Thu_nhập[NGÀY],\"<=\"&DtMiddle,Thu_nhập[NGÀY],\">=\"&DtStart)","v":{"v":0,"d":"0.00 ₫"}},{"$f":"SUMIFS(Thu_nhập[SỐ TIỀN],Thu_nhập[NGÀY],\"<=\"&DtMiddle,Thu_nhập[NGÀY],\">=\"&DtStart)","v":{"v":0,"d":"0.00 ₫"}},{"$f":"SUMIFS(Thu_nhập[SỐ TIỀN],Thu_nhập[NGÀY],\"<=\"&DtMiddle,Thu_nhập[NGÀY],\">=\"&DtStart)","v":{"v":0,"d":"0.00 ₫"}},{"$f":"SUMIFS(Thu_nhập[SỐ TIỀN],Thu_nhập[NGÀY],\"<=\"&DtMiddle,Thu_nhập[NGÀY],\">=\"&DtStart)","v":{"v":0,"d":"0.00 ₫"}}]
[null,"Thu nhập 16-EOM",{"$f":"SUMIFS(Thu_nhập[SỐ TIỀN],Thu_nhập[NGÀY],\"<=\"&DtEnd,Thu_nhập[NGÀY],\">=\"&DtMiddle+1)","v":{"v":0,"d":"0.00 ₫"}},{"$f":"SUMIFS(Thu_nhập[SỐ TIỀN],Thu_nhập[NGÀY],\"<=\"&DtEnd,Thu_nhập[NGÀY],\">=\"&DtMiddle+1)","v":{"v":0,"d":"0.00 ₫"}},{"$f":"SUMIFS(Thu_nhập[SỐ TIỀN],Thu_nhập[NGÀY],\"<=\"&DtEnd,Thu_nhập[NGÀY],\">=\"&DtMiddle+1)","v":{"v":3100,"d":"3,100.00 ₫"}},{"$f":"SUMIFS(Thu_nhập[SỐ TIỀN],Thu_nhập[NGÀY],\"<=\"&DtEnd,Thu_nhập[NGÀY],\">=\"&DtMiddle+1)","v":{"v":3100,"d":"3,100.00 ₫"}},{"$f":"SUMIFS(Thu_nhập[SỐ TIỀN],Thu_nhập[NGÀY],\"<=\"&DtEnd,Thu_nhập[NGÀY],\">=\"&DtMiddle+1)","v":{"v":500,"d":"500.00 ₫"}},{"$f":"SUMIFS(Thu_nhập[SỐ TIỀN],Thu_nhập[NGÀY],\"<=\"&DtEnd,Thu_nhập[NGÀY],\">=\"&DtMiddle+1)","v":{"v":0,"d":"0.00 ₫"}},{"$f":"SUMIFS(Thu_nhập[SỐ TIỀN],Thu_nhập[NGÀY],\"<=\"&DtEnd,Thu_nhập[NGÀY],\">=\"&DtMiddle+1)","v":{"v":0,"d":"0.00 ₫"}},{"$f":"SUMIFS(Thu_nhập[SỐ TIỀN],Thu_nhập[NGÀY],\"<=\"&DtEnd,Thu_nhập[NGÀY],\">=\"&DtMiddle+1)","v":{"v":0,"d":"0.00 ₫"}},{"$f":"SUMIFS(Thu_nhập[SỐ TIỀN],Thu_nhập[NGÀY],\"<=\"&DtEnd,Thu_nhập[NGÀY],\">=\"&DtMiddle+1)","v":{"v":0,"d":"0.00 ₫"}},{"$f":"SUMIFS(Thu_nhập[SỐ TIỀN],Thu_nhập[NGÀY],\"<=\"&DtEnd,Thu_nhập[NGÀY],\">=\"&DtMiddle+1)","v":{"v":0,"d":"0.00 ₫"}},{"$f":"SUMIFS(Thu_nhập[SỐ TIỀN],Thu_nhập[NGÀY],\"<=\"&DtEnd,Thu_nhập[NGÀY],\">=\"&DtMiddle+1)","v":{"v":0,"d":"0.00 ₫"}},{"$f":"SUMIFS(Thu_nhập[SỐ TIỀN],Thu_nhập[NGÀY],\"<=\"&DtEnd,Thu_nhập[NGÀY],\">=\"&DtMiddle+1)","v":{"v":0,"d":"0.00 ₫"}}]
[null,"Chi phí 1-15",{"$f":"SUMIFS(Các_khoản_chi_tiêu[SỐ TIỀN],Các_khoản_chi_tiêu[NGÀY],\"<=\"&DtMiddle+1,Các_khoản_chi_tiêu[NGÀY],\">=\"&DtStart)","v":{"v":0,"d":"0.00 ₫"}},{"$f":"SUMIFS(Các_khoản_chi_tiêu[SỐ TIỀN],Các_khoản_chi_tiêu[NGÀY],\"<=\"&DtMiddle+1,Các_khoản_chi_tiêu[NGÀY],\">=\"&DtStart)","v":{"v":0,"d":"0.00 ₫"}},{"$f":"SUMIFS(Các_khoản_chi_tiêu[SỐ TIỀN],Các_khoản_chi_tiêu[NGÀY],\"<=\"&DtMiddle+1,Các_khoản_chi_tiêu[NGÀY],\">=\"&DtStart)","v":{"v":1150,"d":"1,150.00 ₫"}},{"$f":"SUMIFS(Các_khoản_chi_tiêu[SỐ TIỀN],Các_khoản_chi_tiêu[NGÀY],\"<=\"&DtMiddle+1,Các_khoản_chi_tiêu[NGÀY],\">=\"&DtStart)","v":{"v":5175,"d":"5,175.00 ₫"}},{"$f":"SUMIFS(Các_khoản_chi_tiêu[SỐ TIỀN],Các_khoản_chi_tiêu[NGÀY],\"<=\"&DtMiddle+1,Các_khoản_chi_tiêu[NGÀY],\">=\"&DtStart)","v":{"v":2792,"d":"2,792.00 ₫"}},{"$f":"SUMIFS(Các_khoản_chi_tiêu[SỐ TIỀN],Các_khoản_chi_tiêu[NGÀY],\"<=\"&DtMiddle+1,Các_khoản_chi_tiêu[NGÀY],\">=\"&DtStart)","v":{"v":0,"d":"0.00 ₫"}},{"$f":"SUMIFS(Các_khoản_chi_tiêu[SỐ TIỀN],Các_khoản_chi_tiêu[NGÀY],\"<=\"&DtMiddle+1,Các_khoản_chi_tiêu[NGÀY],\">=\"&DtStart)","v":{"v":0,"d":"0.00 ₫"}},{"$f":"SUMIFS(Các_khoản_chi_tiêu[SỐ TIỀN],Các_khoản_chi_tiêu[NGÀY],\"<=\"&DtMiddle+1,Các_khoản_chi_tiêu[NGÀY],\">=\"&DtStart)","v":{"v":0,"d":"0.00 ₫"}},{"$f":"SUMIFS(Các_khoản_chi_tiêu[SỐ TIỀN],Các_khoản_chi_tiêu[NGÀY],\"<=\"&DtMiddle+1,Các_khoản_chi_tiêu[NGÀY],\">=\"&DtStart)","v":{"v":0,"d":"0.00 ₫"}},{"$f":"SUMIFS(Các_khoản_chi_tiêu[SỐ TIỀN],Các_khoản_chi_tiêu[NGÀY],\"<=\"&DtMiddle+1,Các_khoản_chi_tiêu[NGÀY],\">=\"&DtStart)","v":{"v":0,"d":"0.00 ₫"}},{"$f":"SUMIFS(Các_khoản_chi_tiêu[SỐ TIỀN],Các_khoản_chi_tiêu[NGÀY],\"<=\"&DtMiddle+1,Các_khoản_chi_tiêu[NGÀY],\">=\"&DtStart)","v":{"v":0,"d":"0.00 ₫"}},{"$f":"SUMIFS(Các_khoản_chi_tiêu[SỐ TIỀN],Các_khoản_chi_tiêu[NGÀY],\"<=\"&DtMiddle+1,Các_khoản_chi_tiêu[NGÀY],\">=\"&DtStart)","v":{"v":0,"d":"0.00 ₫"}}]
[null,"Chi phí 16-EOM",{"$f":"SUMIFS(Các_khoản_chi_tiêu[SỐ TIỀN],Các_khoản_chi_tiêu[NGÀY],\"<=\"&DtEnd,Các_khoản_chi_tiêu[NGÀY],\">=\"&DtMiddle+1)","v":{"v":0,"d":"0.00 ₫"}},{"$f":"SUMIFS(Các_khoản_chi_tiêu[SỐ TIỀN],Các_khoản_chi_tiêu[NGÀY],\"<=\"&DtEnd,Các_khoản_chi_tiêu[NGÀY],\">=\"&DtMiddle+1)","v":{"v":75,"d":"75.00 ₫"}},{"$f":"SUMIFS(Các_khoản_chi_tiêu[SỐ TIỀN],Các_khoản_chi_tiêu[NGÀY],\"<=\"&DtEnd,Các_khoản_chi_tiêu[NGÀY],\">=\"&DtMiddle+1)","v":{"v":200,"d":"200.00 ₫"}},{"$f":"SUMIFS(Các_khoản_chi_tiêu[SỐ TIỀN],Các_khoản_chi_tiêu[NGÀY],\"<=\"&DtEnd,Các_khoản_chi_tiêu[NGÀY],\">=\"&DtMiddle+1)","v":{"v":875,"d":"875.00 ₫"}},{"$f":"SUMIFS(Các_khoản_chi_tiêu[SỐ TIỀN],Các_khoản_chi_tiêu[NGÀY],\"<=\"&DtEnd,Các_khoản_chi_tiêu[NGÀY],\">=\"&DtMiddle+1)","v":{"v":500,"d":"500.00 ₫"}},{"$f":"SUMIFS(Các_khoản_chi_tiêu[SỐ TIỀN],Các_khoản_chi_tiêu[NGÀY],\"<=\"&DtEnd,Các_khoản_chi_tiêu[NGÀY],\">=\"&DtMiddle+1)","v":{"v":0,"d":"0.00 ₫"}},{"$f":"SUMIFS(Các_khoản_chi_tiêu[SỐ TIỀN],Các_khoản_chi_tiêu[NGÀY],\"<=\"&DtEnd,Các_khoản_chi_tiêu[NGÀY],\">=\"&DtMiddle+1)","v":{"v":0,"d":"0.00 ₫"}},{"$f":"SUMIFS(Các_khoản_chi_tiêu[SỐ TIỀN],Các_khoản_chi_tiêu[NGÀY],\"<=\"&DtEnd,Các_khoản_chi_tiêu[NGÀY],\">=\"&DtMiddle+1)","v":{"v":0,"d":"0.00 ₫"}},{"$f":"SUMIFS(Các_khoản_chi_tiêu[SỐ TIỀN],Các_khoản_chi_tiêu[NGÀY],\"<=\"&DtEnd,Các_khoản_chi_tiêu[NGÀY],\">=\"&DtMiddle+1)","v":{"v":0,"d":"0.00 ₫"}},{"$f":"SUMIFS(Các_khoản_chi_tiêu[SỐ TIỀN],Các_khoản_chi_tiêu[NGÀY],\"<=\"&DtEnd,Các_khoản_chi_tiêu[NGÀY],\">=\"&DtMiddle+1)","v":{"v":0,"d":"0.00 ₫"}},{"$f":"SUMIFS(Các_khoản_chi_tiêu[SỐ TIỀN],Các_khoản_chi_tiêu[NGÀY],\"<=\"&DtEnd,Các_khoản_chi_tiêu[NGÀY],\">=\"&DtMiddle+1)","v":{"v":0,"d":"0.00 ₫"}},{"$f":"SUMIFS(Các_khoản_chi_tiêu[SỐ TIỀN],Các_khoản_chi_tiêu[NGÀY],\"<=\"&DtEnd,Các_khoản_chi_tiêu[NGÀY],\">=\"&DtMiddle+1)","v":{"v":0,"d":"0.00 ₫"}}]

{"sheet":"Chi tiêu & Thu nhập","index":2,"n_rows":36,"n_cols":9,"rows_kept":36,"merged":[[0,1,0,6],[0,7,0,8]]}
["Tạo danh sách Thu nhập & Chi phí trong trang tính này. Các hướng dẫn hữu ích về cách sử dụng trang tính này đều nằm trong các ô trong cột này. Tiêu đề của sổ làm việc nằm trong ô ở bên phải và tiêu đề trang tính trong ô H1.",{"$f":"Tiêu_đề_ngân_sách_gia_đình_nửa_tháng","v":"Ngân sách Nhà Nửa tháng"},{"$nulls":5},"THU NHẬP & CHI PHÍ"]
["Nhãn Thu nhập nằm trong ô bên phải và nhãn Chi phí trong ô F2.","THU NHẬP",{"$nulls":3},"CÁC KHOẢN CHI PHÍ"]
["Nhập chi tiết trong bảng Thu nhập bắt đầu từ ô bên phải và trong bảng Chi phí bắt đầu ở ô F3.","NGÀY","MÔ TẢ","SỐ TIỀN",null,"NGÀY","DANH MỤC","MÔ TẢ","SỐ TIỀN"]
[null,{"$f":"TODAY()","v":"2022-05-17"},"Tiền thưởng",{"v":500,"d":"500.00 ₫"},null,{"$f":"TODAY()","v":"2022-05-17"},"Y tế","Bảo hiểm",{"v":500,"d":"500.00 ₫"}]
[null,{"$f":"TODAY()-14","v":"2022-05-03"},"Tiền lương của David",{"v":1300,"d":"1,300.00 ₫"},null,{"$f":"TODAY()-7","v":"2022-05-10"},"Hộ gia đình","Thế chấp",{"v":1000,"d":"1,000.00 ₫"}]
[null,{"$f":"TODAY()-14","v":"2022-05-03"},"Tiền lương của Pat",{"v":1300,"d":"1,300.00 ₫"},null,"2022-05-10","Hộ gia đình","Điện",{"v":100,"d":"100.00 ₫"}]
[null,{"$f":"TODAY()-28","v":"2022-04-19"},"Tiền lương của David",{"v":1500,"d":"1,500.00 ₫"},null,"2022-05-10","Hộ gia đình","Nước/cống",{"v":50,"d":"50.00 ₫"}]
[null,{"$f":"TODAY()-28","v":"2022-04-19"},"Tiền lương của Pat",{"v":1600,"d":"1,600.00 ₫"},null,"2022-05-10","Hộ gia đình","Rác",{"v":25,"d":"25.00 ₫"}]
[null,{"$f":"TODAY()-42","v":"2022-04-05"},"Tiền lương của David",{"v":1300,"d":"1,300.00 ₫"},null,"2022-05-10","Hộ gia đình","Điện thoại di động",{"v":100,"d":"100.00 ₫"}]
[null,{"$f":"TODAY()-42","v":"2022-04-05"},"Tiền lương của Pat",{"v":1300,"d":"1,300.00 ₫"},null,"2022-05-10","Hộ gia đình","Điện thoại di động",{"v":30,"d":"30.00 ₫"}]
[null,{"$f":"TODAY()-56","v":"2022-03-22"},"Tiền lương của David",{"v":1500,"d":"1,500.00 ₫"},null,"2022-05-10","Hộ gia đình","Thế chấp",{"v":50,"d":"50.00 ₫"}]
[null,{"$f":"TODAY()-56","v":"2022-03-22"},"Tiền lương của Pat",{"v":1600,"d":"1,600.00 ₫"},null,"2022-05-10","Hộ gia đình","Điện thoại di động",{"v":50,"d":"50.00 ₫"}]
[null,{"$f":"TODAY()-70","v":"2022-03-08"},"Tiền lương của David",{"v":1300,"d":"1,300.00 ₫"},null,{"$f":"TODAY()-7","v":"2022-05-10"},"Hộ gia đình","Điện thoại di động",{"v":25,"d":"25.00 ₫"}]
[{"$nulls":5},{"$f":"TODAY()-8","v":"2022-05-09"},"Hộ gia đình","Điện",{"v":100,"d":"100.00 ₫"}]
[{"$nulls":5},{"$f":"TODAY()-9","v":"2022-05-08"},"Giải trí","Phim",{"v":37,"d":"37.00 ₫"}]
[{"$nulls":5},{"$f":"TODAY()-10","v":"2022-05-07"},"Thực phẩm","Tạp phẩm",{"v":350,"d":"350.00 ₫"}]
[{"$nulls":5},{"$f":"TODAY()-11","v":"2022-05-06"},"Thực phẩm","Ăn ngoài",{"v":75,"d":"75.00 ₫"}]
[{"$nulls":5},{"$f":"TODAY()-12","v":"2022-05-05"},"Con cái","Tiền ăn trưa",{"v":150,"d":"150.00 ₫"}]
[{"$nulls":5},{"$f":"TODAY()-13","v":"2022-05-04"},"Tài khoản Đầu tư","Tiết kiệm",{"v":250,"d":"250.00 ₫"}]
[{"$nulls":5},{"$f":"TODAY()-14","v":"2022-05-03"},"Tài khoản Đầu tư","Tài khoản đầu tư",{"v":250,"d":"250.00 ₫"}]
[{"$nulls":5},{"$f":"TODAY()-15","v":"2022-05-02"},"Cá nhân","Câu lạc bộ Sức khỏe/Thể hình",{"v":100,"d":"100.00 ₫"}]
[{"$nulls":5},{"$f":"TODAY()-16","v":"2022-05-01"},"Vật nuôi","Thực phẩm",{"v":50,"d":"50.00 ₫"}]
[{"$nulls":5},{"$f":"TODAY()-20","v":"2022-04-27"},"Vật nuôi","Chăm sóc vật nuôi",{"v":50,"d":"50.00 ₫"}]
[{"$nulls":5},{"$f":"TODAY()-20","v":"2022-04-27"},"Vật nuôi","Khác",{"v":50,"d":"50.00 ₫"}]
[{"$nulls":5},{"$f":"TODAY()-25","v":"2022-04-22"},"Đi lại","Thanh toán Ô tô 1 ",{"v":300,"d":"300.00 ₫"}]
[{"$nulls":5},{"$f":"TODAY()-25","v":"2022-04-22"},"Đi lại","Thanh toán Ô tô 2 ",{"v":350,"d":"350.00 ₫"}]
[{"$nulls":5},{"$f":"TODAY()-25","v":"2022-04-22"},"Đi lại","Bảo hiểm ô tô",{"v":50,"d":"50.00 ₫"}]
[{"$nulls":5},{"$f":"TODAY()-30","v":"2022-04-17"},"Đi lại","Nhiên liệu",{"v":50,"d":"50.00 ₫"}]
[{"$nulls":5},{"$f":"TODAY()-31","v":"2022-04-16"},"Đi lại","Nhiên liệu",{"v":25,"d":"25.00 ₫"}]
[{"$nulls":5},{"$f":"TODAY()-42","v":"2022-04-05"},"Đi lại","Thanh toán Ô tô 2 ",{"v":150,"d":"150.00 ₫"}]
[{"$nulls":5},{"$f":"TODAY()-45","v":"2022-04-02"},"Hộ gia đình","Thế chấp",{"v":5000,"d":"5,000.00 ₫"}]
[{"$nulls":5},{"$f":"TODAY()-50","v":"2022-03-28"},"Hộ gia đình","Điện",{"v":200,"d":"200.00 ₫"}]
[{"$nulls":5},{"$f":"TODAY()-65","v":"2022-03-13"},"Hộ gia đình","Điện thoại di động",{"v":100,"d":"100.00 ₫"}]
[{"$nulls":5},{"$f":"TODAY()-70","v":"2022-03-08"},"Hộ gia đình","Rác",{"v":50,"d":"50.00 ₫"}]
[{"$nulls":5},{"$f":"TODAY()-75","v":"2022-03-03"},"Hộ gia đình","Thế chấp",{"v":1000,"d":"1,000.00 ₫"}]
[{"$nulls":5},{"$f":"TODAY()-78","v":"2022-02-28"},"Giải trí","Phim",{"v":75,"d":"75.00 ₫"}]

{"sheet":"Báo cáo ngân sách","index":3,"n_rows":26,"n_cols":6,"rows_kept":26,"merged":[[0,1,0,4],[1,1,1,3],[4,3,4,5]]}
["Tạo Báo cáo Ngân sách trong trang tính này. Các hướng dẫn hữu ích về cách sử dụng trang tính này đều nằm trong các ô trong cột này. Tiêu đề của sổ làm việc nằm trong ô ở bên phải và tiêu đề trang tính trong ô F1.",{"$f":"Tiêu_đề_ngân_sách_gia_đình_nửa_tháng","v":"Ngân sách Nhà Nửa tháng"},{"$nulls":3},"BÁO CÁO NGÂN SÁCH"]
["Chọn Năm, Quý, Tháng hoặc Ngày và dùng con trượt trong ô bên phải để lấy PivotTable Chi phí cho khoảng thời gian được chọn. Bộ cắt danh mục để lọc dữ liệu PivotTable nằm trong ô E2 và bộ cắt Mô tả trong ô F2.","Dòng thời gian để lọc nằm trong ô này.",null,null,"Bộ cắt để lọc dữ liệu PivotTable dựa trên Danh mục nằm trong ô này.","Bộ cắt để lọc dữ liệu PivotTable dựa trên Mô tả nằm trong ô này."]
["Mẹo nằm ở ô bên phải.","Nhấn Shift+F10 trong PivotTable Chi phí, rồi chọn Làm mới để cập nhật dữ liệu trên trang tính này, hoặc chọn Làm mới trong tab Phân tích."]
["Nhãn Chi phí nằm trong ô bên phải.","CÁC KHOẢN CHI PHÍ"]
["PivotTable hiển thị chi phí bắt đầu ở ô bên phải. Nhãn Tổng Thể Danh mục nằm trong ô D4.","Nhãn Hàng","Tổng của SỐ TIỀN","TỔNG THỂ LOẠI"]
["Biểu đồ hình tròn so sánh tổng từng danh mục nằm trong ô D6.","Thanh toán Ô tô 1 ",{"v":300,"d":"300.00 ₫"},"Biểu đồ tròn so sánh tổng từng danh mục nằm trong ô này."]
[null,"Ăn ngoài",{"v":75,"d":"75.00 ₫"}]
[null,"Bảo hiểm",{"v":500,"d":"500.00 ₫"}]
[null,"Bảo hiểm ô tô",{"v":50,"d":"50.00 ₫"}]
[null,"Câu lạc bộ Sức khỏe/Thể hình",{"v":100,"d":"100.00 ₫"}]
[null,"Chăm sóc vật nuôi",{"v":50,"d":"50.00 ₫"}]
[null,"Điện",{"v":400,"d":"400.00 ₫"}]
[null,"Điện thoại di động",{"v":305,"d":"305.00 ₫"}]
[null,"Khác",{"v":50,"d":"50.00 ₫"}]
[null,"Nước/cống",{"v":50,"d":"50.00 ₫"}]
[null,"Nhiên liệu",{"v":75,"d":"75.00 ₫"}]
[null,"Phim",{"v":112,"d":"112.00 ₫"}]
[null,"Rác",{"v":75,"d":"75.00 ₫"}]
[null,"Tài khoản đầu tư",{"v":250,"d":"250.00 ₫"}]
[null,"Tạp phẩm",{"v":350,"d":"350.00 ₫"}]
[null,"Tiền ăn trưa",{"v":150,"d":"150.00 ₫"}]
[null,"Tiết kiệm",{"v":250,"d":"250.00 ₫"}]
[null,"Thanh toán Ô tô 2 ",{"v":500,"d":"500.00 ₫"}]
[null,"Thế chấp",{"v":7050,"d":"7,050.00 ₫"}]
[null,"Thực phẩm",{"v":50,"d":"50.00 ₫"}]
[null,"Tổng Cuối",{"v":10742,"d":"10,742.00 ₫"}]

{"sheet":"Danh sách dữ liệu","index":4,"n_rows":8,"n_cols":13,"rows_kept":8,"merged":[[0,1,0,11]]}
["Nhập dữ liệu Danh mục vào trang tính này để điền danh sách thả xuống trong bảng Chi phí trên trang tính Chi phí & Thu nhập. Sửa đổi tên danh mục hoặc mô tả bên dưới mỗi thể loại để cập nhật danh sách. Các hướng dẫn hữu ích về cách sử dụng trang tính này đều nằm trong các ô trong cột này. Tiêu đề của sổ làm việc nằm trong ô ở bên phải và tiêu đề trang tính trong ô M1.",{"$f":"Tiêu_đề_ngân_sách_gia_đình_nửa_tháng","v":"Ngân sách Nhà Nửa tháng"},{"$nulls":10},"DANH SÁCH DỮ LIỆU"]
["Mẹo nằm ở ô bên phải.","THIẾT LẬP         Dữ liệu Danh mục bên dưới điền các danh sách thả xuống trong bảng Chi phí trên trang tính Chi phí & Thu nhập. Sửa đổi tên danh mục hoặc mô tả bên dưới mỗi danh mục để cập nhật danh sách."]
["Nhập hoặc sửa đổi tên hoặc mô tả danh mục bên dưới mỗi danh mục trong bảng bắt đầu ở ô bên phải.","Hộ gia đình","Giải trí","Thực phẩm","Quà tặng/Quyên góp","Con cái","Tài khoản Đầu tư","Y tế","Khác","Cá nhân","Vật nuôi","Thuế/Pháp lý","Đi lại"]
[null,"Thế chấp","Phim","Tạp phẩm","Khoản từ thiện 1","Quần áo","IRA","Bác sĩ/Phòng khám","Khác","Trang phục","Thực phẩm","Liên bang","Thanh toán Ô tô 1 "]
[null,"Điện","Video/Phim","Ăn ngoài","Khoản từ thiện 2","Đồ chơi/Trò chơi","Tiết kiệm","Bảo hiểm","Đến hạn của Tổ chức","Tóc/Móng","Dụng cụ","Tiểu bang","Thanh toán Ô tô 2 "]
[null,"Nước/Cống","Âm nhạc",null,"Khoản từ thiện 3","Tiền ăn trưa","Vãng lai",null,null,"Giặt khô","Y tế","Địa phương","Bảo hiểm ô tô"]
[null,"Rác","Hòa nhạc/Nhà hát",null,"Quà tặng","Đến hạn/Phí","Hưu trí",null,null,"Câu lạc bộ Sức khỏe/Thể hình","Chăm sóc vật nuôi","Khác","Cấp phép/Đăng ký"]
[null,"Điện thoại di động","Sự kiện thể thao",null,null,"Đồ dùng học tập","Tài khoản đầu tư",null,null,"Mua sắm","Khác","Luật sư","Nhiên liệu"]

{"sheet":"Danh mục PivotTable","index":5,"n_rows":13,"n_cols":13,"rows_kept":13,"hidden":true}
[null,"Ngân sách Nhà Nửa tháng",{"$nulls":10},"TỔNG HỢP DANH MỤC"]
[null,"PivotTable này là nguồn dữ liệu cho PivotChart Tổng Danh mục trên Báo cáo Ngân sách. "]
[null,"Nhãn Hàng","Tổng của SỐ TIỀN"]
[null,"Cá nhân",{"v":100,"d":"100 ₫"}]
[null,"Con cái",{"v":150,"d":"150 ₫"}]
[null,"Đi lại",{"v":925,"d":"925 ₫"}]
[null,"Giải trí",{"v":112,"d":"112 ₫"}]
[null,"Hộ gia đình",{"v":7880,"d":"7,880 ₫"}]
[null,"Tài khoản Đầu tư",{"v":500,"d":"500 ₫"}]
[null,"Thực phẩm",{"v":425,"d":"425 ₫"}]
[null,"Vật nuôi",{"v":150,"d":"150 ₫"}]
[null,"Y tế",{"v":500,"d":"500 ₫"}]
[null,"Tổng Cuối",{"v":10742,"d":"10,742 ₫"}]